Cogmind - Beta 15 *** ADVENTURER MODE // 2025.06.15 @ 22:39:19 Player: KYUANTUM Result: Destroyed by YI-UF0 with YI-UF0's Doublenader Performance ------------- Evolutions (0) 0 Regions Visited (4) 800 Robots Destroyed (22) 110 Value Destroyed (537) 537 Prototype IDs (23) 460 Alien Tech Used (0) 0 Bonus (397) 397 TOTAL SCORE: 2304 Bonus ------- Follower Combat Kills 110 Aligned with FarCom 300 Friendly Fire -13 Cogmind --------- Core Integrity 0/250 Matter 295/300 Energy 99/100 System Corruption 1% Temperature Cool (0) Movement Rolling (180) Ox6 Location -9/Mines Parts ------- > --- POWER (1) -------- (None) > --- PROPULSION (2) --- Armored Wheel > --- UTILITY (2) ------ Huge Storage Unit Signal Interpreter > --- WEAPON (2) ------- (None) > --- INVENTORY (25) --- Light Treads Light Treads Improved Treads Improved Treads Improved Treads Improved Treads Wheel Wheel Compact Wheel Armored Wheel Armored Wheel Scrap Suit Heat Sink Improved Heat Sink Visual Processing Unit Sensor Array Signal Interpreter Terrain Scanner Trap Reconfigurator Plasma Cutter Plasma Cutter Peak State ------------ > --- POWER ------------ Light Ion Engine > --- PROPULSION ------- Armored Wheel Armored Wheel > --- UTILITY ---------- Huge Storage Unit Signal Interpreter > --- WEAPON ----------- Medium Laser Medium Laser > --- INVENTORY -------- Light Treads Light Treads Improved Treads Improved Treads Improved Treads Improved Treads Compact Wheel Armored Wheel Armored Wheel Scrap Suit Heat Sink Improved Heat Sink Visual Processing Unit Sensor Array Signal Interpreter Trap Reconfigurator Medium Laser Plasma Cutter Plasma Cutter Explosive Trap Explosive Trap Explosive Trap Explosive Trap Explosive Trap [Rating: 14] Favorites ----------- Power Light Ion Engine Engine Light Ion Engine Propulsion Armored Wheel Wheel Armored Wheel Utility Huge Storage Unit Storage Huge Storage Unit Processor Signal Interpreter Weapon Medium Laser Energy Gun Medium Laser Launcher Grenade Launcher Special Weapon Plasma Cutter Build | -11 -10 -10 -10 -9 ------- Run | Yrd Mat Min Exi Min Slots Evolved . | . . . . . Power . | . . . . . Propulsion . | . . . . . Utility . | . . . . . Weapon . | . . . . . Parts Attached 19 | 4 13 . . 2 Power 2 | . 2 . . . Engine 2 | . 2 . . . Core . | . . . . . Reactor . | . . . . . Propulsion 6 | 2 3 . . 1 Treads . | . . . . . Leg . | . . . . . Wheel 6 | 2 3 . . 1 Hover . | . . . . . Flight . | . . . . . Utility 4 | 1 3 . . . Device . | . . . . . Storage 3 | 1 2 . . . Processor 1 | . 1 . . . Hackware . | . . . . . Protection . | . . . . . Artifact . | . . . . . Weapon 7 | 1 5 . . 1 Energy Gun 4 | 1 3 . . . Energy Cannon . | . . . . . Ballistic Gun . | . . . . . Ballistic Cannon . | . . . . . Launcher 1 | . . . . 1 Special Weapon 2 | . 2 . . . Impact Weapon . | . . . . . Slashing Weapon . | . . . . . Piercing Weapon . | . . . . . Special Melee Weapon . | . . . . . Unidentified Prototypes . | . . . . . Parts Lost 9 | . 4 . . 5 Power 2 | . 1 . . 1 Propulsion 4 | . 2 . . 2 Utility . | . . . . . Weapon 3 | . 1 . . 2 Highest Loss Streak 4 | . 3 . . 4 To Critical Strikes . | . . . . . Average Backups 15 | 2 8 17 19 19 Power . | 1 . . . . Propulsion 7 | 1 3 10 9 10 Utility 4 | . . 4 6 7 Weapon . | . 1 1 1 . Tool/Special . | . . . . . Unused Backups 19 | . . . 1 18 Power . | . . . . . Propulsion 11 | . . . 1 10 Utility 8 | . . . . 8 Weapon . | . . . . . Tool/Special . | . . . . . Average Slot Usage (%) 94 | . 94 100 100 85 Engine 11 | . 13 14 14 5 Wheel 27 | . 27 28 28 28 Storage 14 | . 14 14 14 14 Processor 12 | . 9 14 14 14 Energy Gun 24 | . 27 28 28 16 Launcher 1 | . . . . 6 Peak Build Rating 14 | 4 11 13 14 14 Average Rating 10 | 3 7 11 13 12 On Entrance 8 | . 4 11 13 14 Naked Turns . | . . . . . Heaviest Build 87 | 7 87 87 87 87 Greatest Support 32 | 32 32 24 24 24 Greatest Overweight (x) 5 | . 5 3 3 3 Average Overweight (x) 2 | . 1 3 3 3 Largest Inventory Capacity 25 | 8 25 25 25 25 Average Capacity 23 | 7 20 25 25 25 Most Carried 25 | 4 17 25 25 25 Average Carried 17 | 2 8 19 25 22 Final Capacity 25 | 8 25 25 25 25 Final Carried 25 | 4 16 25 25 22 Class Distribution -------------------- 100% | Mutant Dominant Class ---------------- Mutant | -10/Materials Mutant | -10/Mines Mutant | -10/Exiles Mutant | -9/Mines Resources | -11 -10 -10 -10 -9 ----------- Run | Yrd Mat Min Exi Min Matter Collected 477 | 130 294 . . 53 Remotely . | . . . . . Salvage Created 819 | . 629 122 . 68 Parts 38 | . 21 7 . 10 Haulers Intercepted 1 | . 1 . . . Recyclers Shooed . | . . . . . Parts Field Recycled . | . . . . . Retrieved Matter . | . . . . . Parts Self-Destructed . | . . . . . Prevented . | . . . . . Kills | -11 -10 -10 -10 -9 ------- Run | Yrd Mat Min Exi Min Combat Hostiles Destroyed 15 | . 7 3 . 5 Guns 12 | . 6 3 . 3 AOE 2 | . . . . 2 Classes Destroyed 6 | . 5 . . 1 Worker 2 | . 1 . . 1 Hauler 1 | . 1 . . . Recycler 2 | . 2 . . . Watcher 2 | . 2 . . . Swarmer 4 | . . . . 4 Grunt 11 | . 7 3 . 1 Best Kill Streak 4 | . 3 2 . 4 Combat Bots Only 3 | . 2 2 . 3 Max Kills in Single Turn 2 | . 1 1 . 2 Gunslinging . | . . . . . Exploded 1 | . . . . 1 Melee . | . . . . . Uniques/NPCs Destroyed . | . . . . . Combat | -11 -10 -10 -10 -9 -------- Run | Yrd Mat Min Exi Min Hostile Shots Fired 110 | . 57 11 . 42 Missed 31 | . 19 3 . 9 Hits 79 | . 38 8 . 33 Projectile 79 | . 38 8 . 33 AOE 12 | . . . . 12 Critical Strikes 1 | . 1 . . . Damage Taken 994 | . 382 73 . 539 Core 258 | . 70 17 . 171 Absorbed by Shields . | . . . . . Ignored by Resistances 293 | . 116 24 . 153 Core Remaining (%) 100 | 100 . . . . Volleys Fired 81 | . 57 7 . 17 Largest 2 | . 2 2 . 2 Hottest 100 | . 100 100 . 80 Shots Fired 140 | . 102 16 . 22 Gun 136 | . 102 16 . 18 Cannon . | . . . . . Launcher 4 | . . . . 4 Special . | . . . . . Kinetic . | . . . . . Thermal 95 | . 61 16 . 18 Explosive 4 | . . . . 4 Electromagnetic 41 | . 41 . . . Robot Hit Streak 17 | . 17 12 . 13 Robot Miss Streak 4 | . 3 1 . 4 Penetration Max . | . . . . . Secondary Targets . | . . . . . Shots Hit Robots 104 | . 75 14 . 15 Core Hits 40 | . 24 8 . 8 Critical Kills . | . . . . . Critical Parts Destroyed . | . . . . . Critical Strikes 6 | . 5 1 . . Burn 5 | . 4 1 . . Corrupt 1 | . 1 . . . Melee Attacks . | . . . . . Impact . | . . . . . Slashing . | . . . . . Piercing . | . . . . . Sneak Attacks . | . . . . . Combat Hostiles . | . . . . . Follow-up Attacks . | . . . . . Damage Inflicted 1463 | . 991 174 . 298 Guns 1301 | . 991 174 . 136 Cannons . | . . . . . Explosions 162 | . . . . 162 Melee . | . . . . . Ramming . | . . . . . Kinetic . | . . . . . Thermal 901 | . 591 174 . 136 Explosive 162 | . . . . 162 Electromagnetic 400 | . 400 . . . Impact . | . . . . . Slashing . | . . . . . Piercing . | . . . . . Highest Corruption 1 | . 1 1 1 1 Average Corruption 1 | . 1 1 1 1 Corruption Purged . | . . . . . Corruption Blocked . | . . . . . Effects 22 | . 5 5 5 7 Matter Fused 4 | . 2 . . 2 Heat Flow Errors 2 | . 2 . . . Energy Discharges 7 | . . 1 3 3 Data Loss (minor) 5 | . . 2 2 1 Misfires 4 | . 1 2 . 1 Overload Shots . | . . . . . Overflow Damage 18 | . . . . 18 Projectiles . | . . . . . Explosions 18 | . . . . 18 Melee . | . . . . . Knockbacks . | . . . . . Impact . | . . . . . Kinetic . | . . . . . Secondary . | . . . . . Self-Inflicted Damage . | . . . . . Shots . | . . . . . Rammed . | . . . . . Targets Rammed . | . . . . . Kicked . | . . . . . Crushed . | . . . . . Highest Temperature 365 | . 365 281 . 35 Average Temperature 94 | . 104 114 . 10 Received Heat Transfer 399 | . 306 54 . 39 Effects 4 | . 4 . . . Shutdowns 1 | . 1 . . . Interference 2 | . 2 . . . Matter Decay 1 | . 1 . . . Siege Activations . | . . . . . Martial Activations . | . . . . . Shielding Activations . | . . . . . Robots Disrupted . | . . . . . Combat Hostiles . | . . . . . Robots Corrupted . | . . . . . Combat Hostiles . | . . . . . Parts Fried 2 | . 2 . . . Impact Corruptions . | . . . . . Robots Melted 1 | . 1 . . . Combat Hostiles 1 | . 1 . . . Parts Melted 6 | . 3 2 . 1 Heat Transferred 3034 | . 2035 592 . 407 Parts Sabotaged . | . . . . . Parts Stolen . | . . . . . Parts Stripped . | . . . . . Power Chain Reactions . | . . . . . Alert | -11 -10 -10 -10 -9 ------- Run | Yrd Mat Min Exi Min Maximum Alert Level . | . . . . . Low Security (%) 100 | 100 100 100 . 100 Level 1 . | . . . . . Level 2 . | . . . . . Level 3 . | . . . . . Level 4 . | . . . . . Level 5 . | . . . . . High Security . | . . . . . Max Security . | . . . . . Peak Influence 136 | . 70 91 . 136 Initial 3 | . . 3 . . Average 20 | . 15 28 . 23 Influence Increases 717 | . 357 142 . 218 Destroy 0b10 Robot/C 380 | . 140 120 . 120 Destroy 0b10 Robot/NC 35 | . 30 . . 5 Destroy Leader 86 | . 46 20 . 20 Allied During Kill 3 | . . 2 . 1 Successful Hack 12 | . 12 . . . Disable Machine 9 | . 9 . . . Destroy Structure 27 | . . . . 27 Lose Combat Pursuer 165 | . 120 . . 45 Influence Decreases 717 | . 347 152 . 218 Entered New Map 7 | . . 7 . . Time Decay 679 | . 338 145 . 196 Lost Part 20 | . 9 . . 11 Lost Ally 11 | . . . . 11 Squads Dispatched 2 | . . 1 . 1 Investigation 1 | . . . . 1 Extermination . | . . . . . Reinforcement . | . . . . . Assault 1 | . . 1 . . Garrison . | . . . . . Intercept . | . . . . . Searches Triggered . | . . . . . Construction Impeded . | . . . . . Haulers Reinforced . | . . . . . Active Scanning Responses . | . . . . . Cargo Convoy Interrupts . | . . . . . Stealth | -11 -10 -10 -10 -9 --------- Run | Yrd Mat Min Exi Min Distress Signals 1 | . 1 . . . Communications Jammed . | . . . . . Distress Signals . | . . . . . Times Spotted 35 | . 20 6 . 9 Peak Tracking Total 4 | . 3 4 . 4 Tactical Retreats 7 | . 6 . . 1 Traps | -11 -10 -10 -10 -9 ------- Run | Yrd Mat Min Exi Min Traps Triggered 1 | . 1 . . . Indirectly . | . . . . . Trap Hack Attempts . | . . . . . Triggered . | . . . . . Disarmed . | . . . . . Reprogrammed . | . . . . . Reused . | . . . . . Traps Extracted . | . . . . . Installed 5 | . . . . 5 Triggered . | . . . . . Most Traps Carried 5 | . . 5 5 5 Machines | -11 -10 -10 -10 -9 ---------- Run | Yrd Mat Min Exi Min Machines Disabled 1 | . 1 . . . Max in Single Turn 1 | . 1 . . . Machines Repaired . | . . . . . Machines Dismantled 1 | . 1 . . . Machines Sabotaged . | . . . . . Overloaded Fab Kills . | . . . . . Hacking | -11 -10 -10 -10 -9 --------- Run | Yrd Mat Min Exi Min Machines Accessed 11 | . 5 . 5 1 Terminals 6 | . 5 . . 1 Fabricators . | . . . . . Repair Stations . | . . . . . Recycling Units . | . . . . . Scanalyzers . | . . . . . Garrison Access . | . . . . . Total Hacks 65 | . 12 . 50 3 Successful 63 | . 11 . 50 2 Failed 2 | . 1 . . 1 Catastrophic . | . . . . . Database Lockouts . | . . . . . Manual 2 | . . . 2 . Terminals 15 | . 12 . . 3 Fabricators . | . . . . . Repair Stations . | . . . . . Recycling Units . | . . . . . Scanalyzers . | . . . . . Garrison Access . | . . . . . Terminal Hacks 63 | . 11 . 50 2 Record 53 | . 3 . 49 1 Robot Analysis 2 | . 2 . . . Emergency Access Points 3 | . 3 . . . Alert Level 1 | . 1 . . . Zone Layout 3 | . 2 . . 1 Proto ID Catalog 1 | . . . 1 . Fabricator Hacks . | . . . . . Repair Station Hacks . | . . . . . Recycling Unit Hacks . | . . . . . Scanalyzer . | . . . . . Garrison Access Hacks . | . . . . . Unauthorized Hacks . | . . . . . Terminals . | . . . . . Fabricators . | . . . . . Repair Stations . | . . . . . Recycling Units . | . . . . . Scanalyzers . | . . . . . Garrison Access . | . . . . . Data Cores Recovered . | . . . . . Used . | . . . . . Hacking Detections 4 | . 3 . . 1 Full Trace Events 1 | . . . . 1 Feedback Events . | . . . . . Feedback Blocked . | . . . . . Robot Schematics Acquired . | . . . . . Robots Built . | . . . . . Authchips . | . . . . . Time . | . . . . . Total Robot Build Rating . | . . . . . Part Schematics Acquired . | . . . . . Parts Built . | . . . . . Authchips . | . . . . . Time . | . . . . . Total Part Build Rating . | . . . . . Parts Repaired . | . . . . . Time . | . . . . . Parts Recycled . | . . . . . Recycled Matter . | . . . . . Retrieved Matter . | . . . . . Retrieved Components . | . . . . . Parts Scanalyzed . | . . . . . Part Schematics Acquired . | . . . . . Parts Damaged . | . . . . . Bothacking | -11 -10 -10 -10 -9 ------------ Run | Yrd Mat Min Exi Min Used RIF Installer . | . . . . . Robots Hacked . | . . . . . Non-combat . | . . . . . Combat . | . . . . . Robot Hacks Applied . | . . . . . Relay Couplers Released . | . . . . . Fabnet Peak Effective % . | . . . . . Robots Rewired . | . . . . . Allies Hacked . | . . . . . Hacks Repelled . | . . . . . Allies | -11 -10 -10 -10 -9 -------- Run | Yrd Mat Min Exi Min Total Allies 1 | . . 1 . . Largest Group 1 | . . 1 1 1 Highest-Rated Group 31 | . . 31 31 31 Highest-Rated Ally 31 | . . 31 31 31 Total Orders . | . . . . . Ally Attacks 19 | . . 12 . 7 Total Damage 279 | . . 168 . 111 Kills 4 | . . 3 . 1 Allies Corrupted . | . . . . . Allies Melted . | . . . . . Intel | -11 -10 -10 -10 -9 ------- Run | Yrd Mat Min Exi Min Active Infowar (turns) . | . . . . . Robot Analysis Total 2 | . 2 . . . Derelict Logs Recovered 1 | . . . . 1 Drone Launches . | . . . . . Drone Recoveries . | . . . . . Exploration | -11 -10 -10 -10 -9 ------------- Run | Yrd Mat Min Exi Min Turns Passed 3592 | 60 1258 394 954 926 Spaces Moved 2252 | 55 679 262 701 555 Core 13 | 13 . . . . Treads . | . . . . . Legs . | . . . . . Wheels 2239 | 42 679 262 701 555 Hover . | . . . . . Flight . | . . . . . Fastest Speed 50 | 50 100 135 135 135 Average Speed 130 | 88 122 135 135 135 Slowest Speed 175 | 100 175 135 135 135 Overloaded Moves . | . . . . . Propulsion Burnouts . | . . . . . Robots Hopped . | . . . . . Potential Cave-ins . | . . . . . Cave-ins Triggered . | . . . . . Exploration Rate (%) 62 | 3 69 60 94 87 Regions Visited 4 Branch Regions 3 Pre-discovered Areas 1 | . . . 1 . Known Exits Taken 3 | . 1 1 1 . Unknown Exits Taken 1 | 1 . . . . Scrap Searched 2 | . . . . 2 Spaces Dug . | . . . . . Terrain Destroyed 35 | . . . . 35 Melee . | . . . . . Projectile . | . . . . . AOE 35 | . . . . 35 Terrain Rammed . | . . . . . Walls Destroyed . | . . . . . Machines Disabled . | . . . . . Actions | -11 -10 -10 -10 -9 --------- Run | Yrd Mat Min Exi Min Total 2769 | 66 992 288 709 714 Wait 356 | . 216 12 7 121 Move 2248 | 54 678 261 700 555 Hop . | . . . . . Pick Up 43 | 8 20 8 1 6 Fast Attach 1 | . 1 . . . Attach 13 | 4 7 . . 2 Detach . | . . . . . Swap 7 | . 7 . . . Drop 11 | . 2 . 1 8 Fire 81 | . 57 7 . 17 Melee . | . . . . . Ram . | . . . . . Kick . | . . . . . Crush . | . . . . . Escape Stasis . | . . . . . Rewire . | . . . . . Trap 5 | . . . . 5 Miscellaneous 4 | . 4 . . . Route ------- -11/Scrapyard -10/Materials (discovered 4 exits: *Mat x2 / *Min x2) -10/Mines -10/Exiles (discovered 2 exits: *Min x2) -9/Mines (discovered 1 exit: [*Mat]) History --------- Turn | Location | Event 4 | -11/Scrapyard | Discovered new exit (range 16) 61 | -11/Scrapyard | Entered Materials 286 | -10/Materials | Discovered new exit (range 14) 298 | -10/Materials | Discovered new exit (range 15) 317 | -10/Materials | Build established: Mutant 467 | -10/Materials | Discovered new exit (range 5) 692 | -10/Materials | Identified exit to Mines 1059 | -10/Materials | Lost 3 parts (1p1n1w) 1088 | -10/Materials | Discovered new exit (range 6) 1093 | -10/Materials | Identified exit to Materials 1319 | -10/Materials | Entered Mines 1320 | -10/Mines | Met a Derelict testing a Signal Generator 1404 | -10/Mines | Found a Scrap Suit stashed away for nefarious purposes 1406 | -10/Mines | Found Scrap Suit 1674 | -10/Mines | Found a hidden stash of uninstalled traps 1697 | -10/Mines | Deemed a non-threat by the Exiles lab entrance 1698 | -10/Mines | Discovered new exit (range 5) 1702 | -10/Mines | Identified exit to Exiles 1713 | -10/Mines | Entered Exiles 1713 | -10/Exiles | Accompanied by 1 ally 1741 | -10/Exiles | Discovered new exit (range 15) 1753 | -10/Exiles | Met 8R-AWN 1781 | -10/Exiles | Identified exit to Mines 1835 | -10/Exiles | Met EX-HEX 1914 | -10/Exiles | Met EX-DEC 1942 | -10/Exiles | Visited The Gauntlet 2167 | -10/Exiles | Met EX-BIN 2186 | -10/Exiles | Aligned with FarCom system 2187 | -10/Exiles | Given EX-Vault access code 2313 | -10/Exiles | Opened EX-Vault 2321 | -10/Exiles | Found Prototype Device 2324 | -10/Exiles | Identified Trap Reconfigurator 2371 | -10/Exiles | Warned to stay clear of 0b10 Research branches 2417 | -10/Exiles | Learned location of Zion (-7) 2482 | -10/Exiles | Discovered exit to Mines (range 14) 2667 | -10/Exiles | Left Exiles lab with Trap Reconfigurator 2667 | -10/Exiles | Entered Mines 2667 | -9/Mines | Accompanied by 1 ally 2734 | -9/Mines | Learned 4 Materials zone layouts 2821 | -9/Mines | YI-UF0 nonchalantly dropped a Grenade Launcher on the ground 3138 | -9/Mines | Core integrity fell below 50% 3230 | -9/Mines | Discovered new exit (range 13) 3592 | -9/Mines | Core integrity fell below 20% 3593 | -9/Mines | Destroyed by YI-UF0 with YI-UF0's Doublenader Last Messages --------------- 03353_ System corrupted: Matter fused (-7). 03353_ T-07 Excavator is excavating. 03388_ Acquired Arm. Wheel. 03398_ Acquired 26 matter. 03402_ Acquired Terrain Scanner. 03422_ System corrupted: Matter fused (-6). 03444_ System corrupted: Energy discharge (-32). 03457_ Searching scrap... 03457_ Found 42 Matter. 03457_ Found Lgt. EM Pulse Cannon. 03457_ Found 68 Matter. 03458_ Acquired 6 matter. 03582_ YI-UF0 mumbles something. 03583_ The unstable cave ceiling collapses. 03585_ Grenade Launcher destroyed. 03587_ The unstable cave ceiling collapses. 03587_ Med. Laser destroyed. 03587_ Arm. Wheel destroyed. 03588_ YI-UF0 mumbles something. 03593_ Arm. Wheel destroyed. Map ----- +----------------------------------------------------+ | ???????????####???# ##?????#### ##??????? | | ???????????# #??# ###???# #######? | | ??????????## #### #???# ## ] ## | | ??????????# ##### ###]% # | | ??????????# #?## # | | ??????????## ##### ###########??# | | ???????????## ##???# [#????????????# | | ????????????#####????#[ #????????????## ## | | ????# ??????????????# #?????????????#### #? | | ????? ############# #????????????????## # | | ????? #?????????????????## # | | ??????# #??????????????????#### | | ??????######### #########?????????????????????? | | ??????????????# #?????????????????????????????? | | ??????????????# #?????????????????????????????? | | ??????????##### #????????????####?????????????? | | ??????????# #???????????## ##????????????? | | ????????### ##########??????# #????????????? | | ?######## ?## # ###????# #????????????? | | ?# # # ##???# #####?????????? | | ?# #??## #????????## | | ?# #g #?## #????????# | | ?# ### ### #????????## | | ?# "" = = ## #?# #????????# | | ?# ## ##?# #????????## | | ?# ## @ ## ##??# #???####?# | | ?# " ??## #???# #??## ### | | ?# #?????##### # #???# #?## ### | | ?#### ##??????????####### #???# ### #?# | | ?????#????????????????????# #???# ## #### | | ??????????????????????????# #???# # #### | | ??????????######??????????# #???# ### | | ??######### ##?????????# #???# #?# # | | ??# % #####?????# #???##### ##?# # | | ??# ]% ##????# #???????# #### # | | ?## ####### ###??# #???????# ## # | | ?# ##???##### #### #???????# ## # | | ?# #???????## #???????# ## ### | | ?## ##???????## ########???????# ## #?# | | ??# ##???????## ##???????????#### ### | | ??# ##???????# ##????????????# | | ??# ##??????# #?????????????# | | ??# ##?????# #?????????????# < | | ??# ##????# ######????????##### | | ??## #???## ## ###?????###### # | | ???# """ #??## ###???# ### | | ???# """ ##?## ##??# ###?? | | ??## """ ##??# #??# ########???? | | ??# ##???# ##?# #??????????? | | ?# #????# ### ### ##?????????? | +----------------------------------------------------+ Best States ------------- Heat Dissipation 25 Energy Generation 10 Energy Capacity 125 Matter Stores 300 Matter Capacity 300 Sight Range 16 Terrain Scan Density 10 Resistance: KI 20 Resistance: TH 20 Resistance: EX 20 Resistance: EM 20 Resistance: I 20 Resistance: S 20 Resistance: P 20 Evasion (%) 50 Offensive Hacking 10 Item Schematics ----------------- None Robot Schematics ------------------ None Fabricated ------------ Nothing Repaired ---------- Nothing Alien Tech Used ----------------- None Achievements -------------- None Challenges ------------ None Game ------ Seed MagneticAnalysisExtrapolator Manual? 0 Play Time 00:37:24 Cumulative 7.5 hours Start 2025.06.15 @ 21:45:33 End 2025.06.15 @ 22:39:19 Sessions 1 Manual Loads 0 Difficulty Adventurer Special Mode None Game No. 9 Rogue 0 Adventurer 9 Explorer 0 Win Type - Total 0 Types 0/0/0/0/0/0/0/0/0/0 Lore% 17 Gallery% 12 Achievement% 12 Wizard Run 0 Options --------- Layout 0 ASCII 0 Keyboard 0 Movement Mouse Keybinds 0 Fullscreen 2 Font 24/Smallcaps Map View 38x25 Zoom Use 95% Tactical HUD 1 Map Filters NONE Filters NONE Steam 1 RUN: 6328435b-fcb2-4e34-8259-115525d984c6